bitfinex-derivatives/quotes_BTCF0:USTF0_20241213
["timestamp","ask_amount","ask_price","bid_price","bid_amount"]
[1734133464211,0.32543017,101280.0,101270.0,4.78236932]
[1734133464416,0.32543261,101280.0,101270.0,5.01882222]
[1734133464603,0.14793634,101280.0,101270.0,5.01882222]
[1734133465206,0.32543261,101280.0,101270.0,5.01882222]
[1734133465502,0.14793634,101280.0,101270.0,5.01882222]
[1734133465708,0.32543261,101280.0,101270.0,5.01882222]
[1734133467118,0.14793634,101280.0,101270.0,5.01882222]
[1734133467917,0.32543261,101280.0,101270.0,5.01882222]
[1734133468117,0.32543261,101280.0,101270.0,5.04932222]
[1734133468526,0.37478761,101280.0,101270.0,5.04932222]
[1734133468912,0.22685127,101280.0,101270.0,5.04932222]
[1734133471219,0.22685127,101280.0,101270.0,4.87180102]
[1734133474022,0.17749627,101280.0,101270.0,4.87180102]
[1734133474212,0.27485356,101280.0,101270.0,4.87180102]
[1734133474413,0.22685627,101280.0,101270.0,4.87180102]
[1734133476218,0.22685627,101280.0,101270.0,5.04947418]
[1734133476423,0.22685627,101280.0,101270.0,5.04947263]
[1734133476624,0.22685627,101280.0,101270.0,4.87180102]
[1734133476829,0.22685627,101280.0,101270.0,5.04947273]
[1734133482428,0.22685627,101280.0,101270.0,5.01897273]
[1734133488220,0.22685627,101280.0,101270.0,4.90823326]
[1734133488522,0.31739069,101280.0,101270.0,4.31098036]
[1734133488724,0.35059069,101280.0,101270.0,4.13330865]
[1734133488928,0.38239069,101280.0,101270.0,4.13330865]
[1734133489128,0.40829408,101280.0,101270.0,4.13330865]
[1734133489524,0.38239069,101280.0,101270.0,4.13330865]
[1734133489923,0.17574147,101280.0,101270.0,4.13330865]
[1734133495933,0.11436,101280.0,101270.0,4.13330865]
[1734133496726,0.33987191,101280.0,101270.0,4.24405512]
[1734133496925,0.29186594,101280.0,101270.0,4.24405512]
[1734133497328,0.29186594,101280.0,101270.0,4.60485512]
[1734133497531,0.29186594,101280.0,101270.0,4.78252683]
[1734133498236,0.11436,101280.0,101270.0,4.78252683]
[1734133498529,0.33986894,101280.0,101270.0,4.78252683]
[1734133498727,0.29186594,101280.0,101270.0,4.78252683]
[1734133501629,0.61976294,101290.0,101270.0,4.78252683]
[1734133501829,0.61976294,101290.0,101280.0,0.11074147]
[1734133502230,0.67453803,101290.0,101280.0,0.11074147]
[1734133502926,0.7359195,101290.0,101280.0,0.04936]
[1734133503729,0.50363847,101290.0,101280.0,0.04936]
[1734133506632,0.442257,101290.0,101280.0,0.04936]
[1734133509629,0.61981288,101290.0,101280.0,0.04936]
[1734133509830,0.442257,101290.0,101280.0,0.04936]
[1734133514034,0.88507676,101290.0,101280.0,0.04936]
[1734133514541,0.91051809,101290.0,101280.0,0.04936]
[1734133517336,0.54971809,101290.0,101280.0,0.47154147]
[1734133517645,0.31354755,101290.0,101280.0,0.97154147]
[1734133517835,0.31354755,101290.0,101280.0,0.61074147]
[1734133519446,0.26419055,101290.0,101280.0,1.03292294]
[1734133519647,0.26419055,101290.0,101280.0,1.06422294]
[1734133519835,0.05754133,101290.0,101280.0,1.00284147]
[1734133520040,0.0321,101290.0,101280.0,1.00284147]
[1734133522041,0.0321,101290.0,101280.0,1.06422294]
[1734133522242,0.25762157,101290.0,101280.0,1.06422294]
[1734133522446,0.23506527,101290.0,101280.0,1.06422294]
[1734133523251,0.28442027,101290.0,101280.0,1.06422294]
[1734133523441,0.28442027,101290.0,101280.0,1.00284147]
[1734133528047,0.10689633,101290.0,101280.0,1.00284147]
[1734133528454,0.36154362,101290.0,101280.0,1.00284147]
[1734133528757,0.31354555,101290.0,101280.0,1.00284147]
[1734133529755,0.081455,101290.0,101280.0,0.97154147]
[1734133530150,0.10693925,101290.0,101280.0,0.97154147]
[1734133530654,0.081455,101290.0,101280.0,0.47154147]
[1734133534456,0.25900326,101290.0,101280.0,0.64921318]
[1734133535754,0.25900326,101290.0,101280.0,0.58783171]
[1734133535959,0.25900326,101290.0,101280.0,0.64921318]
[1734133541561,0.25900326,101290.0,101280.0,0.47154147]
[1734133542165,0.25900326,101290.0,101280.0,0.64921318]
[1734133542555,0.25900326,101290.0,101280.0,0.47154147]
[1734133542556,0.28810422,101290.0,101280.0,0.47154147]
[1734133543469,0.081455,101290.0,101280.0,0.47154147]
[1734133544161,0.33610229,101290.0,101280.0,0.47154147]
[1734133544368,0.28810422,101290.0,101280.0,0.47154147]
[1734133547571,0.31372713,101290.0,101280.0,0.47154147]
[1734133549259,0.31372713,101290.0,101280.0,0.64921318]
[1734133549461,0.31372713,101290.0,101280.0,0.47154147]
[1734133551872,0.31372713,101290.0,101280.0,0.64921318]
[1734133552574,0.28810422,101290.0,101280.0,0.64921318]
[1734133552771,0.28810422,101290.0,101280.0,0.74089465]
[1734133552971,0.31372713,101290.0,101280.0,0.74089465]
[1734133554060,0.28810422,101290.0,101280.0,0.74089465]
[1734133555170,0.081455,101290.0,101280.0,0.74089465]
[1734133555575,0.33610187,101290.0,101280.0,0.74089465]
[1734133555869,0.99186408,101320.0,101310.0,0.049346]
[1734133555870,0.00148126,101320.0,101310.0,0.049346]
[1734133556072,0.049837,101330.0,101320.0,0.049341]
[1734133556272,0.049837,101330.0,101320.0,0.53290394]
[1734133556471,0.049837,101330.0,101320.0,0.11072247]
[1734133556774,0.049837,101330.0,101320.0,0.47152247]
[1734133556965,0.049337,101330.0,101320.0,0.47152247]
[1734133557471,0.049337,101330.0,101320.0,0.53290394]
[1734133557876,0.049837,101330.0,101320.0,0.53290394]
[1734133558169,0.19741347,101330.0,101320.0,0.53290394]
[1734133559076,0.19691347,101330.0,101320.0,0.53290394]
[1734133559273,0.19691347,101330.0,101320.0,0.47152247]
[1734133559574,0.19691347,101330.0,101320.0,0.53290394]
[1734133559974,0.19741347,101330.0,101320.0,0.53290394]
[1734133560172,0.19741347,101330.0,101320.0,0.53190394]
[1734133560868,0.19691347,101330.0,101320.0,0.53190394]
[1734133561971,0.19741347,101330.0,101320.0,0.53190394]
[1734133562372,0.14807647,101330.0,101320.0,0.5419161]
[1734133562873,0.14757647,101330.0,101320.0,0.5419161]
[1734133563468,0.26544206,101330.0,101320.0,0.5419161]
[1734133563669,0.14757647,101330.0,101320.0,0.5419161]
[1734133563865,0.14807647,101330.0,101320.0,0.5419161]
[1734133564069,0.2659351,101330.0,101320.0,0.5419161]
[1734133564269,0.2986351,101330.0,101320.0,0.5419161]
[1734133564976,0.2981351,101330.0,101320.0,0.5419161]
[1734133565170,0.15055863,101330.0,101320.0,0.5419161]
[1734133565378,0.23892469,101330.0,101320.0,0.5419161]
[1734133565575,0.23892469,101330.0,101320.0,1.0419161]
[1734133566372,0.12106606,101330.0,101320.0,1.0419161]
[1734133570880,0.08836606,101330.0,101320.0,1.0419161]
[1734133573076,0.25555569,101340.0,101330.0,0.049336]
[1734133573274,0.25555569,101340.0,101330.0,0.47151747]
[1734133573481,0.25544018,101340.0,101330.0,0.47151747]
[1734133573682,0.16718963,101340.0,101330.0,0.47151747]
[1734133573877,0.25543968,101340.0,101330.0,0.47151747]
[1734133574083,0.16718963,101340.0,101330.0,0.47151747]
[1734133577977,0.16718963,101340.0,101330.0,0.410136]
[1734133578383,0.16718963,101340.0,101330.0,0.47151747]
[1734133580388,0.3147661,101340.0,101330.0,0.47151747]
[1734133581184,0.19690747,101340.0,101330.0,0.47151747]
[1734133583493,0.37342565,101340.0,101330.0,0.47151747]
[1734133584083,0.22584918,101340.0,101330.0,0.47151747]
[1734133587086,0.17651818,101340.0,101330.0,0.53289894]
[1734133587283,0.473227,101350.0,101340.0,0.549331]
[1734133587284,0.26974922,101350.0,101340.0,0.549331]
[1734133587585,0.26974922,101350.0,101340.0,1.03289394]
[1734133587586,0.24052153,101350.0,101340.0,1.03289394]
[1734133587792,0.24052153,101350.0,101340.0,1.21043882]
[1734133587979,0.17742153,101350.0,101340.0,1.21043882]
[1734133588186,0.22538601,101350.0,101340.0,1.21043882]
[1734133588385,0.32519954,101350.0,101340.0,1.21043882]
[1734133588787,0.32519954,101350.0,101340.0,1.27182029]
[1734133588788,0.14777801,101350.0,101340.0,1.27182029]
[1734133589085,0.14777801,101350.0,101340.0,1.5085468]
[1734133589392,0.2659462,101350.0,101340.0,1.5085468]
[1734133589786,0.2160462,101350.0,101340.0,1.8085468]
[1734133590390,0.11816819,101350.0,101340.0,1.57182029]
[1734133590588,0.11816819,101350.0,101340.0,1.8085468]
[1734133591385,0.17890259,101360.0,101340.0,1.8085468]
[1734133591696,0.20972704,101370.0,101360.0,0.049321]
[1734133591990,0.20972704,101370.0,101360.0,0.97150247]
[1734133591991,0.0331,101370.0,101360.0,0.97150247]
[1734133592394,0.0005,101370.0,101360.0,1.09426541]
[1734133592993,0.0005,101370.0,101360.0,1.12606541]
[1734133593586,0.0005,101370.0,101360.0,1.30361029]
[1734133593793,0.0005,101370.0,101360.0,0.94281029]
[1734133593991,0.68483504,101390.0,101360.0,1.35293129]
[1734133594190,0.68483504,101390.0,101380.0,0.17207494]
[1734133594793,0.68483504,101390.0,101380.0,0.11069347]
[1734133596200,0.507708,101390.0,101380.0,0.11069347]
[1734133598297,0.049312,101380.0,101370.0,0.410115]
[1734133598498,0.049312,101380.0,101370.0,0.47149647]
[1734133599000,0.049812,101380.0,101370.0,0.47149647]
[1734133599197,0.049812,101380.0,101370.0,0.410115]
[1734133599396,0.049812,101380.0,101370.0,0.47149647]
[1734133600203,0.049312,101380.0,101370.0,0.47149647]
[1734133601091,0.049812,101380.0,101370.0,0.47149647]
[1734133602089,0.049312,101380.0,101370.0,0.47149647]
[1734133603097,0.049812,101380.0,101370.0,0.47149647]
[1734133605093,0.049312,101380.0,101370.0,0.47149647]
[1734133608602,0.531641,101400.0,101390.0,4.20397249]
[1734133608900,0.65440394,101400.0,101390.0,4.20397249]
[1734133609201,0.68016344,101400.0,101390.0,4.20397249]
[1734133610196,0.5574005,101400.0,101390.0,4.20397249]
[1734133610509,0.86105316,101400.0,101390.0,4.20397249]
[1734133610804,0.88681266,101400.0,101390.0,4.20397249]
[1734133611796,0.98211266,101400.0,101390.0,4.20397249]
[1734133611997,1.11158541,101400.0,101390.0,2.60023582]
[1734133612204,1.28258843,101400.0,101390.0,2.60023582]
[1734133613101,1.28208843,101400.0,101390.0,2.60023582]
[1734133613501,1.31160975,101400.0,101390.0,2.60023582]
[1734133613704,1.28587448,101400.0,101390.0,2.60023582]
[1734133614104,1.28637448,101400.0,101390.0,2.60023582]
[1734133615106,1.28587448,101400.0,101390.0,2.60023582]
[1734133615298,1.55149013,101400.0,101390.0,2.60023582]
[1734133616109,1.55199013,101400.0,101390.0,2.60023582]
[1734133616307,1.31581959,101400.0,101390.0,2.60023582]
[1734133617109,1.31531959,101400.0,101390.0,2.60023582]
[1734133617313,1.67611959,101400.0,101390.0,2.60023582]
[1734133617713,1.97124809,101400.0,101390.0,2.60023582]
[1734133618512,2.03027379,101400.0,101390.0,2.60023582]
[1734133619114,2.07027244,101400.0,101390.0,2.60023582]
[1734133619701,2.32234905,101400.0,101390.0,1.78272746]
[1734133619906,1.83652541,101400.0,101390.0,1.72721793]
[1734133620116,1.83652541,101400.0,101390.0,1.58313093]
[1734133620616,2.16167393,101400.0,101390.0,1.58313093]
[1734133621112,2.10029246,101400.0,101390.0,1.58313093]
[1734133621513,2.39584004,101400.0,101390.0,1.58313093]
[1734133623917,2.07069152,101400.0,101390.0,1.58313093]
[1734133625608,2.13207299,101400.0,101390.0,1.10206293]
[1734133625817,2.16167393,101400.0,101390.0,0.52488693]
[1734133626015,2.16167393,101400.0,101390.0,0.26500693]
[1734133629818,2.16167393,101400.0,101390.0,0.2094968]
[1734133630120,2.16167393,101400.0,101390.0,0.14049679]
[1734133630419,2.45705039,101400.0,101390.0,0.14049679]
[1734133631423,2.13190187,101400.0,101390.0,0.14049679]
[1734133636623,2.45705039,101400.0,101390.0,0.03476364]
[1734133637028,2.16167393,101400.0,101390.0,0.03476364]
[1734133637222,2.39788759,101400.0,101390.0,0.03476364]
[1734133637522,2.13197919,101400.0,101390.0,0.03476364]
[1734133640128,2.13197919,101400.0,101370.0,0.0651]
[1734133640129,2.13197919,101400.0,101370.0,0.04936362]
[1734133640330,0.97623421,101380.0,101370.0,0.04936362]
[1734133640519,1.00017767,101380.0,101370.0,0.04936362]
[1734133641020,1.00017767,101380.0,101370.0,0.04986362]
[1734133641418,0.82283396,101380.0,101370.0,0.08216362]
[1734133643126,0.82283396,101380.0,101370.0,0.08166362]
[1734133644235,0.82283396,101380.0,101370.0,0.08216362]
[1734133645531,0.83270064,101380.0,101370.0,0.08216362]
[1734133646042,0.83270064,101380.0,101370.0,0.08166362]
[1734133646432,1.25768226,101380.0,101370.0,0.08166362]
[1734133646632,1.12815442,101380.0,101370.0,0.08166362]
[1734133646832,0.83270064,101380.0,101370.0,0.08166362]
[1734133647033,1.25767804,101380.0,101370.0,0.08166362]
[1734133647228,1.12815442,101380.0,101370.0,0.08166362]
[1734133648734,1.06677295,101380.0,101370.0,0.08166362]
[1734133648929,0.26070185,101380.0,101370.0,0.55316109]
[1734133649135,0.20716351,101380.0,101370.0,0.55316109]
[1734133649332,0.34179744,101390.0,101370.0,0.55316109]
[1734133649539,0.04795868,101380.0,101370.0,0.55316109]
[1734133649739,0.23110697,101390.0,101380.0,0.049312]
[1734133650035,1.11492598,101400.0,101380.0,0.47149347]
[1734133650236,1.11492598,101400.0,101390.0,0.032]
[1734133650540,1.21830732,101400.0,101390.0,0.032]
[1734133651545,1.15692585,101400.0,101390.0,0.032]
[1734133651843,1.21830732,101400.0,101390.0,0.032]
[1734133652047,0.98154893,101400.0,101390.0,0.032]
[1734133656945,0.98154893,101400.0,101390.0,0.04203907]
[1734133659842,0.98154893,101400.0,101390.0,0.01003907]
[1734133660043,0.98154893,101400.0,101380.0,0.50329347]
[1734133660242,0.17704043,101390.0,101380.0,0.50329347]
[1734133664544,0.17704043,101390.0,101380.0,0.51303418]
[1734133664849,0.224996,101390.0,101380.0,0.51303418]
[1734133665552,0.17704043,101390.0,101380.0,0.51303418]
[1734133667150,0.17704043,101390.0,101380.0,0.49783418]
[1734133668151,0.17704043,101390.0,101380.0,0.48123418]
[1734133668352,0.14751122,101390.0,101380.0,0.48123418]
[1734133669244,0.32455165,101390.0,101380.0,0.48123418]
[1734133669553,0.14751122,101390.0,101380.0,0.48123418]
[1734133674847,0.9183089,101400.0,101380.0,0.48123418]
[1734133675243,0.22499396,101390.0,101380.0,0.48123418]
[1734133677050,0.22499396,101390.0,101380.0,0.54261565]
[1734133677355,0.22499396,101390.0,101380.0,1.22016053]
[1734133677551,0.32479477,101390.0,101380.0,1.22016053]
[1734133677961,0.14775434,101390.0,101380.0,1.22016053]
[1734133678147,0.17704043,101390.0,101380.0,1.22016053]
[1734133679060,0.22499058,101390.0,101380.0,1.22016053]
[1734133679256,0.22499058,101390.0,101380.0,1.45688704]
[1734133680360,0.27429758,101390.0,101380.0,1.3341241]
[1734133680559,0.22634743,101390.0,101380.0,0.89550557]
[1734133680759,0.22634743,101390.0,101380.0,0.65877906]
[1734133683461,0.22634743,101390.0,101380.0,0.59739759]
[1734133683664,0.22634743,101390.0,101380.0,0.65877906]
[1734133684861,0.11068847,101390.0,101380.0,0.37054071]
[1734133689461,0.47630072,101390.0,101380.0,0.37054071]
[1734133689657,0.1345645,101390.0,101380.0,0.37054071]
[1734133689968,0.11068847,101390.0,101380.0,0.37054071]
[1734133692568,0.12071573,101390.0,101380.0,0.37054071]
[1734133694570,0.48630143,101390.0,101380.0,0.37054071]
[1734133694763,0.35179949,101390.0,101380.0,0.37054071]
[1734133694964,0.32722004,101390.0,101380.0,0.37054071]
[1734133695655,0.35179949,101390.0,101380.0,0.37054071]
[1734133696366,0.32722004,101390.0,101380.0,0.37054071]
[1734133697282,0.26583857,101390.0,101380.0,0.37054071]
[1734133697465,0.26583857,101390.0,101380.0,0.43192218]
[1734133697466,0.25581131,101390.0,101380.0,0.43192218]
[1734133698370,0.61661131,101390.0,101380.0,0.07112218]
[1734133698566,0.049307,101390.0,101380.0,0.07112218]
[1734133698766,0.30376947,101390.0,101380.0,0.07112218]
[1734133698970,0.41493525,101390.0,101380.0,0.00974071]
[1734133699172,0.28017934,101390.0,101370.0,0.68004235]
[1734133699372,0.22537995,101380.0,101370.0,0.68004235]
[1734133700069,0.22537995,101380.0,101370.0,0.63072635]
[1734133701871,0.17742242,101380.0,101370.0,0.63072635]
[1734133702067,0.22537995,101380.0,101370.0,0.63072635]
[1734133702565,0.27469195,101380.0,101370.0,0.63072635]
[1734133702766,0.22673442,101380.0,101370.0,0.63072635]
[1734133703070,0.22673442,101380.0,101370.0,0.57901469]
[1734133703374,0.22673442,101380.0,101370.0,0.64039616]
[1734133703671,0.20237494,101380.0,101370.0,0.37046981]
[1734133703873,0.62887494,101380.0,101370.0,0.00966981]
[1734133704071,0.049316,101370.0,101360.0,0.53884488]
[1734133704269,0.33608866,101370.0,101360.0,0.53834488]
[1734133704467,0.28812393,101370.0,101360.0,0.53834488]
[1734133704664,0.28812393,101370.0,101360.0,0.3608]
[1734133705174,0.28812393,101370.0,101360.0,0.3613]
[1734133706773,0.67800178,101370.0,101360.0,0.0005]
[1734133707073,0.93919161,101370.0,101360.0,0.0005]
[1734133708178,0.049321,101360.0,101350.0,0.37088485]
[1734133708479,0.43016168,101360.0,101350.0,0.37088485]
[1734133708666,0.38219088,101360.0,101350.0,0.37088485]
[1734133709272,0.38219088,101360.0,101350.0,0.37138485]
[1734133710272,0.38219088,101360.0,101350.0,0.37088485]
[1734133710468,0.32080941,101360.0,101350.0,0.37088485]
[1734133710672,0.38219088,101360.0,101350.0,0.37088485]
[1734133710867,0.44357235,101360.0,101350.0,0.37088485]
[1734133711177,0.44357235,101360.0,101350.0,0.37138485]
[1734133711768,0.44357235,101360.0,101350.0,0.3613]
[1734133712072,0.44357235,101360.0,101350.0,0.0005]
[1734133712287,0.049326,101350.0,101340.0,0.3608]
[1734133712472,0.25822231,101350.0,101340.0,0.3608]
[1734133714172,0.25822231,101350.0,101340.0,0.3613]
[1734133715572,0.25822231,101350.0,101340.0,0.37130808]
[1734133715573,0.37614034,101350.0,101340.0,0.37130808]
[1734133718478,0.25822231,101350.0,101340.0,0.37130808]
[1734133724290,0.25822231,101350.0,101340.0,0.37080808]
[1734133725486,0.43524012,101350.0,101340.0,0.37080808]
[1734133726690,0.37385865,101350.0,101340.0,0.37080808]
[1734133726880,0.43524012,101350.0,101340.0,0.37080808]
[1734133728488,0.37385865,101350.0,101340.0,0.37080808]
[1734133728694,0.43524012,101350.0,101340.0,0.37080808]
[1734133730386,0.28772528,101350.0,101340.0,0.37080808]
[1734133734791,0.11070747,101350.0,101340.0,0.37080808]
[1734133735089,0.14776293,101350.0,101340.0,1.15906543]
[1734133735294,0.14776293,101350.0,101340.0,1.41099194]
[1734133735495,0.14776293,101350.0,101340.0,1.41058616]
[1734133736399,0.14776293,101350.0,101340.0,1.23344706]
[1734133736690,0.14776293,101350.0,101340.0,1.41061341]
[1734133737392,0.19708893,101350.0,101340.0,1.41061341]
[1734133741295,0.31529397,101350.0,101340.0,1.41061341]
[1734133742186,0.37667544,101350.0,101340.0,0.83403194]
[1734133742386,0.37665833,101350.0,101340.0,0.59730543]
[1734133742587,0.2584704,101350.0,101340.0,0.59730543]
[1734133745595,0.2584704,101350.0,101340.0,0.42013908]
[1734133745596,0.43579686,101350.0,101340.0,0.42013908]
[1734133746102,0.28803393,101350.0,101340.0,0.37080808]
[1734133749406,0.31210645,101350.0,101340.0,0.37080808]
[1734133750498,0.13477999,101350.0,101340.0,0.37080808]
[1734133750698,0.11070747,101350.0,101340.0,0.37080808]
[1734133751104,0.17208894,101350.0,101340.0,0.37080808]
[1734133751704,0.42656817,101350.0,101340.0,0.32090808]
[1734133751902,0.17208894,101350.0,101340.0,0.32090808]
[1734133753700,0.11070747,101350.0,101340.0,0.32090808]
[1734133753900,0.17208894,101350.0,101340.0,0.32090808]
[1734133754902,0.17208894,101350.0,101340.0,0.33098157]
[1734133756200,0.17208894,101350.0,101340.0,0.32090808]
[1734133756506,0.42656882,101350.0,101340.0,0.32090808]
[1734133756702,0.37859325,101350.0,101340.0,0.32090808]
[1734133757509,0.17208894,101350.0,101340.0,0.32090808]
[1734133758403,0.049331,101340.0,101320.0,0.53796635]
[1734133758708,0.43580183,101330.0,101320.0,0.37055827]
[1734133759009,0.28803621,101330.0,101320.0,0.37055827]
[1734133759211,0.28803621,101330.0,101320.0,0.37105827]
[1734133760208,0.28803621,101330.0,101320.0,0.37055827]
[1734133761307,0.28803621,101330.0,101320.0,0.37105827]
[1734133761608,0.43573587,101330.0,101320.0,0.37105827]
[1734133762009,0.28803621,101330.0,101320.0,0.37105827]
[1734133762209,0.28803621,101330.0,101320.0,0.37055827]
[1734133763211,0.28803621,101330.0,101320.0,0.37105827]
[1734133763412,0.43566025,101330.0,101320.0,0.37105827]
[1734133765414,0.43566025,101330.0,101320.0,0.37055827]
[1734133765611,0.37427878,101330.0,101320.0,0.37055827]
[1734133765811,0.43566025,101330.0,101320.0,0.37055827]
[1734133771615,0.28803621,101330.0,101320.0,0.37055827]
[1734133771914,0.43565667,101330.0,101320.0,0.37055827]
[1734133772507,0.28803621,101330.0,101320.0,0.37055827]
[1734133774811,0.28803621,101330.0,101320.0,0.00975827]
[1734133775013,0.28803621,101330.0,101310.0,0.50302547]
[1734133775221,0.28803621,101330.0,101310.0,0.3918]
[1734133775222,0.25840506,101320.0,101310.0,0.3918]
[1734133775420,0.4681238,101320.0,101310.0,0.3918]
[1734133776218,0.4681238,101320.0,101310.0,0.3923]
[1734133777424,0.4681238,101320.0,101310.0,0.40218515]
[1734133778325,0.4681238,101320.0,101310.0,0.40168515]
[1734133779425,0.52950527,101320.0,101310.0,0.40168515]
[1734133779619,0.52950527,101320.0,101310.0,0.37068515]
[1734133780227,0.38182268,101320.0,101310.0,0.37068515]
[1734133782827,0.32044121,101320.0,101310.0,0.37068515]
[1734133786422,0.25905974,101320.0,101310.0,0.37068515]
[1734133786730,0.32044121,101320.0,101310.0,0.37068515]
[1734133787446,0.14312247,101320.0,101310.0,0.37068515]
[1734133794254,0.38838165,101320.0,101310.0,0.37068515]
[1734133794443,0.3403943,101320.0,101310.0,0.37068515]
[1734133795846,0.0324,101320.0,101310.0,0.37068515]
[1734133796048,0.0324,101320.0,101310.0,0.5971975]
[1734133796049,0.27123848,101320.0,101310.0,0.5971975]
[1734133797344,0.32057948,101320.0,101310.0,0.5971975]
[1734133812663,0.32057948,101320.0,101310.0,0.6302975]
[1734133821564,0.32057948,101320.0,101310.0,0.86702401]
[1734133822566,0.32057948,101320.0,101310.0,1.22782401]
[1734133824260,0.14312247,101320.0,101310.0,1.22782401]
[1734133826176,0.14312247,101320.0,101310.0,1.19472401]
[1734133826475,0.081741,101320.0,101310.0,1.19472401]
[1734133829168,0.081741,101320.0,101310.0,0.47312401]
[1734133829369,0.081741,101320.0,101310.0,1.19472401]
[1734133831364,0.14312247,101320.0,101310.0,1.19472401]
[1734133831565,0.3687943,101320.0,101310.0,1.19472401]
[1734133831777,0.35271005,101320.0,101310.0,1.19472401]
[1734133833266,0.35271005,101320.0,101310.0,0.47312401]
[1734133833579,0.35271005,101320.0,101310.0,1.19472401]
[1734133837583,0.17502247,101320.0,101310.0,1.19472401]
[1734133838081,0.20822247,101320.0,101310.0,1.19472401]
[1734133840379,0.113641,101320.0,101310.0,1.25610548]
[1734133840581,0.081741,101320.0,101310.0,1.19472401]
[1734133841580,0.30741802,101320.0,101310.0,1.19472401]
[1734133841784,0.25943389,101320.0,101310.0,1.19472401]
[1734133843186,0.32081536,101320.0,101310.0,1.19500401]
[1734133843784,0.14312247,101320.0,101310.0,1.19500401]
[1734133844176,0.14312247,101320.0,101310.0,1.14565801]
[1734133844478,0.14312247,101320.0,101310.0,0.42405801]
[1734133844772,0.14312247,101320.0,101310.0,1.14565801]
[1734133845982,0.14312247,101320.0,101310.0,1.19500401]
[1734133847882,0.14312247,101320.0,101310.0,0.47340401]
[1734133848089,0.14312247,101320.0,101310.0,1.19500401]
[1734133850884,0.14312247,101320.0,101310.0,1.14565801]
[1734133851103,0.46131105,101320.0,101310.0,1.14565801]
[1734133851281,0.41332678,101320.0,101310.0,1.14565801]
[1734133851786,0.20682247,101320.0,101310.0,1.14565801]
[1734133852393,0.145441,101320.0,101310.0,1.19500401]
[1734133852583,0.081741,101320.0,101310.0,1.19500401]
[1734133853288,0.081741,101320.0,101310.0,0.78485801]
[1734133853490,0.44456153,101320.0,101310.0,0.5481315]
[1734133853690,0.28824531,101320.0,101310.0,0.5481315]
[1734133855184,0.14312247,101320.0,101310.0,0.5481315]
[1734133857392,0.36875821,101320.0,101310.0,0.5481315]
[1734133857581,0.32077174,101320.0,101310.0,0.5481315]
[1734133861591,0.25939027,101320.0,101310.0,0.5481315]
[1734133862499,0.25939027,101320.0,101310.0,0.5974775]
[1734133863597,0.32077174,101320.0,101310.0,0.5481315]
[1734133864402,0.32077174,101320.0,101310.0,0.5974775]
[1734133867301,0.25939027,101320.0,101310.0,0.83420401]
[1734133869404,0.25939027,101320.0,101310.0,0.86580401]
[1734133871105,0.25939027,101320.0,101310.0,1.22660401]
[1734133872106,0.25939027,101320.0,101310.0,0.50500401]
[1734133872298,0.25939027,101320.0,101310.0,1.22660401]
[1734133872504,0.25939027,101320.0,101310.0,1.28798548]
[1734133876305,0.17764927,101320.0,101310.0,1.28798548]
[1734133876510,0.22563193,101320.0,101310.0,1.28798548]
[1734133876710,0.27497293,101320.0,101310.0,1.28798548]
[1734133876909,0.22699027,101320.0,101310.0,1.28798548]
[1734133877806,0.17764927,101320.0,101310.0,1.28798548]
[1734133877997,0.14797402,101320.0,101310.0,1.11081913]
[1734133878409,0.14797402,101320.0,101310.0,1.61081913]
[1734133881315,0.32562329,101320.0,101310.0,1.78829524]
[1734133882119,0.14797402,101320.0,101310.0,1.78829524]
[1734133882316,0.14797402,101320.0,101310.0,1.61081913]
[1734133883609,0.26629544,101320.0,101310.0,2.23150904]
[1734133883814,0.20705566,101320.0,101310.0,2.056164]
[1734133884016,0.08873424,101320.0,101310.0,1.99220117]
[1734133884206,0.20705566,101320.0,101310.0,2.2877937]
[1734133884407,0.20705566,101320.0,101310.0,2.34917517]
[1734133884918,0.20705566,101320.0,101310.0,1.99446692]
[1734133887516,0.08873424,101320.0,101310.0,2.23079345]
[1734133889015,0.08873424,101320.0,101310.0,2.22972467]
[1734133890216,0.26843713,101320.0,101310.0,2.1367432]
[1734133890416,0.29254389,101320.0,101310.0,1.51743768]
[1734133890723,0.23116242,101320.0,101310.0,1.51743768]
[1734133891024,0.37913644,101320.0,101310.0,1.69469418]
[1734133891319,0.26081502,101320.0,101310.0,1.69469418]
[1734133891517,0.32219649,101320.0,101310.0,1.69469418]
[1734133892113,0.32219649,101320.0,101310.0,1.75607565]
[1734133892320,0.37903601,101320.0,101310.0,1.51974912]
[1734133892520,0.26081502,101320.0,101310.0,1.75607565]
[1734133893629,0.38357796,101320.0,101310.0,1.40902165]
[1734133893819,0.41325321,101320.0,101310.0,0.37096515]
[1734133894014,0.41325321,101320.0,101300.0,0.5385565]
[1734133894015,0.049346,101310.0,101300.0,0.5385565]
[1734133894218,0.33608911,101310.0,101300.0,0.0005]
[1734133894522,0.49533841,101310.0,101290.0,0.410154]
[1734133894723,0.4689939,101300.0,101290.0,0.410154]
[1734133895126,0.4689939,101300.0,101290.0,0.3608]
[1734133895430,0.4689939,101300.0,101290.0,0.410155]
[1734133896227,0.4689939,101300.0,101290.0,0.42170345]
[1734133897331,0.5341939,101300.0,101290.0,0.42170345]
[1734133897516,0.35688712,101300.0,101290.0,0.42170345]
[1734133898516,0.41826859,101300.0,101290.0,0.37234845]
[1734133898919,0.59557537,101300.0,101290.0,0.37234845]
[1734133899115,0.5341939,101300.0,101290.0,0.37234845]
[1734133900524,0.35688712,101300.0,101290.0,0.37284845]
[1734133901428,0.47481858,101300.0,101290.0,0.37234845]
[1734133901622,0.41826859,101300.0,101290.0,0.37234845]
[1734133902630,0.41826859,101300.0,101290.0,0.37284845]
[1734133903423,0.41826859,101300.0,101290.0,0.37234845]
[1734133903424,0.53615331,101300.0,101290.0,0.37234845]
[1734133904529,0.53615331,101300.0,101290.0,0.37284845]
[1734133905326,0.53615331,101300.0,101290.0,0.3613]
[1734133905529,0.53615331,101300.0,101290.0,0.3608]
[1734133906643,0.53615331,101300.0,101290.0,0.3613]
[1734133907421,0.89695331,101300.0,101280.0,0.37255605]
[1734133907729,0.31694375,101290.0,101280.0,0.37255605]
[1734133909432,0.31694375,101290.0,101280.0,0.37305605]
[1734133911137,0.31694375,101290.0,101280.0,0.01225605]
[1734133911328,0.31694375,101290.0,101280.0,0.37305605]
[1734133914530,0.31694375,101290.0,101280.0,0.01225605]
[1734133914730,0.31694375,101290.0,101280.0,0.37305605]
[1734133916038,0.37832522,101290.0,101280.0,0.37305605]
[1734133916539,0.37632485,101290.0,101280.0,0.37305605]
[1734133919441,0.4357989,101290.0,101280.0,0.37305605]
[1734133920138,0.25849212,101290.0,101280.0,0.37305605]
[1734133921643,0.28804325,101290.0,101280.0,0.37305605]
[1734133922340,0.28804325,101290.0,101280.0,0.01225605]
[1734133922843,0.31181371,101290.0,101280.0,0.37305605]
[1734133923041,0.28804325,101290.0,101280.0,0.37305605]
[1734133923544,0.28804325,101290.0,101280.0,0.37255605]
[1734133923545,0.22666178,101290.0,101280.0,0.37255605]
[1734133923739,0.28804325,101290.0,101280.0,0.37255605]
[1734133924241,0.4358629,101290.0,101280.0,0.54981255]